{"text_format":"3","workbook":"xlsx","n_sheets":3,"sheets":["Početak","Budžet i praćenje poklona","Podaci"],"not_rendered":{"charts":1,"defined_names":1},"read":"whole","date_system":"1900"}

{"sheet":"Početak","index":0,"n_rows":7,"n_cols":2,"rows_kept":7}
[null,"Osnovni podaci o predlošku"]
[null,"Koristite ovaj predložak da biste evidentirali kupovine poklona i pratili ih u odnosu na budžet."]
[null,"U tabelu unesite imena porodice i prijatelja, poklon-artikle, budžetirane i utrošene iznose i beleške i izaberite mesec povoda i događaja."]
[null,"Grafikon mesečnog pregleda se automatski ažurira."]
[null,"Beleška: "]
[null,"Dodatna uputstva su navedena u koloni A u radnom listu BUDŽET I PRAĆENJE POKLONA. Ovaj tekst je namerno skriven. Da biste uklonili tekst, izaberite kolonu A, a zatim izaberite stavku „IZBRIŠI“. Da biste otkrili tekst, izaberite kolonu A, a zatim promenite boju fonta."]
[null,"Da biste saznali više o tabelama, pritisnite taster SHIFT, a zatim unutar tabele pritisnite taster F10, izaberite opciju „TABELA“, a zatim stavku „ALTERNATIVNI TEKST“."]

{"sheet":"Budžet i praćenje poklona","index":1,"n_rows":10,"n_cols":13,"rows_kept":10,"merged":[[0,1,0,4],[0,5,0,12],[1,1,1,2],[2,1,2,12],[3,1,3,3]]}
["Kreirajte lični budžet i praćenje poklona u ovom radnom listu. Naslov radnog lista se nalazi u ćeliji sa desne strane, a savet u ćeliji F1. Korisna uputstva o tome kako da koristite ovaj radni list nalaze se u ćelijama u ovoj koloni.","Budžet i praćenje poklona",{"$nulls":3},"Popunite što više možete na početku svake nove godine. Unesite imena porodice i prijatelja, izaberite povod za poklon, izaberite mesec događaja i otkucajte koliko želite da potrošite. Svaka osoba može da se pojavi više puta u okviru tabele za svaki različiti povod (rođendan, praznik, darivanje bebe itd.)."]
["Oznaka mesečnog pregleda se nalazi u ćeliji sa desne strane, a savet u ćeliji D2.","Mesečni pregled",null,"Koristite grafikon da pogledate predstojeće mesece da biste planirali unapred. Evidentirajte kupovine da biste ih pratili u odnosu na budžet."]
["Stubičasti grafikon za budžetirane iznose sa prekrivkom linijskog grafikona za potrošen iznos nalazi se u ćeliji sa desne strane.","Stubičasti grafikon za budžetirane iznose sa prekrivkom linijskog grafikona za potrošen iznos nalazi se u ovoj ćeliji."]
["Oznaka „Budžet i praćenje poklona“ nalazi se u ćeliji sa desne strane.","Budžet i praćenje poklona"]
["Unesite detalje u tabelu „Praćenje budžeta“ počev od ćelije sa desne strane.","Ko","Povod","Mesec","Iznos\nbudžetirani","Iznos\npotrošeno","Poklon","Veza ka poklonu","U prodavnici/\nNa mreži","Kupljeno?","Upakovano?","Isporučeno?","Beleške"]
[null,"Ime 1","Rođendani","Jun",{"v":50,"d":"50 RSD"},{"v":30,"d":"30 RSD"},"Cipele","Prodavac","Na mreži","Da","Ne","Ne","6/16, Karte za bioskop"]
[null,"Ime 2","Godišnjice","April",{"v":20,"d":"20 RSD"},{"v":20,"d":"20 RSD"},"Mačka","Prodavac","U prodavnici","Ne","Ne","Ne","Pomenuo je da voli pse"]
[null,"Ime 3","Praznici","Jul",{"v":50,"d":"50 RSD"},{"v":70,"d":"70 RSD"},"Slušalice","Prodavac","Na mreži","Ne","Ne","Ne","Stvari za studentski dom"]
[null,"Ime 4","Rođendani","Januar",{"v":20,"d":"20 RSD"},{"v":30,"d":"30 RSD"},"Igra","Prodavac","U prodavnici","Da","Da","Da"]
[null,"Ime 5","Venčanja","Jun",{"v":100,"d":"100 RSD"},{"v":150,"d":"150 RSD"},"Kristalna vaza","Prodavac","U prodavnici","Da","Da","Ne"]

{"sheet":"Podaci","index":2,"n_rows":13,"n_cols":8,"rows_kept":13,"hidden":true}
["Povodi",null,"Datum","Datum","Iznos predviđen budžetom\nRođendani","Iznos predviđen budžetom\nPraznici","Iznos predviđen budžetom\nDrugo","Utrošen iznos"]
["Rođendani",null,"januar","Jan",{"$f":"SUMIFS(BudgetTracker[Iznos\nbudžetirani],BudgetTracker[Mesec],\"Januar\",BudgetTracker[Povod],\"Rođendani\")","v":{"v":20,"d":"20 RSD"}},{"$f":"SUMIFS(BudgetTracker[Iznos\nbudžetirani],BudgetTracker[Mesec],\"Januar\",BudgetTracker[Povod],\"Praznici\")","v":{"v":0,"d":"0 RSD"}},{"$f":"SUMIFS(BudgetTracker[Iznos\nbudžetirani],BudgetTracker[Mesec],\"Januar\",BudgetTracker[Povod],\"<>Praznici\",BudgetTracker[Povod],\"<>Rođendani\")","v":{"v":0,"d":"0 RSD"}},{"$f":"SUMIFS(BudgetTracker[Iznos\npotrošeno],BudgetTracker[Mesec],\"Januar\")","v":{"v":30,"d":"30 RSD"}}]
["Praznici",null,"Februar","Feb",{"$f":"SUMIFS(BudgetTracker[Iznos\nbudžetirani],BudgetTracker[Mesec],\"Februar\",BudgetTracker[Povod],\"Rođendani\")","v":{"v":0,"d":"0 RSD"}},{"$f":"SUMIFS(BudgetTracker[Iznos\nbudžetirani],BudgetTracker[Mesec],\"Februar\",BudgetTracker[Povod],\"Praznici\")","v":{"v":0,"d":"0 RSD"}},{"$f":"SUMIFS(BudgetTracker[Iznos\nbudžetirani],BudgetTracker[Mesec],\"Februar\",BudgetTracker[Povod],\"<>Praznici\",BudgetTracker[Povod],\"<>Rođendani\")","v":{"v":0,"d":"0 RSD"}},{"$f":"SUMIFS(BudgetTracker[Iznos\npotrošeno],BudgetTracker[Mesec],\"Februar\")","v":{"v":0,"d":"0 RSD"}}]
["Godišnjice",null,"Mart","Mart",{"$f":"SUMIFS(BudgetTracker[Iznos\nbudžetirani],BudgetTracker[Mesec],\"Mart\",BudgetTracker[Povod],\"Rođendani\")","v":{"v":0,"d":"0 RSD"}},{"$f":"SUMIFS(BudgetTracker[Iznos\nbudžetirani],BudgetTracker[Mesec],\"Mart\",BudgetTracker[Povod],\"Praznici\")","v":{"v":0,"d":"0 RSD"}},{"$f":"SUMIFS(BudgetTracker[Iznos\nbudžetirani],BudgetTracker[Mesec],\"Mart\",BudgetTracker[Povod],\"<>Praznici\",BudgetTracker[Povod],\"<>Rođendani\")","v":{"v":0,"d":"0 RSD"}},{"$f":"SUMIFS(BudgetTracker[Iznos\npotrošeno],BudgetTracker[Mesec],\"Mart\")","v":{"v":0,"d":"0 RSD"}}]
["Venčanja",null,"April","Apr",{"$f":"SUMIFS(BudgetTracker[Iznos\nbudžetirani],BudgetTracker[Mesec],\"April\",BudgetTracker[Povod],\"Rođendani\")","v":{"v":0,"d":"0 RSD"}},{"$f":"SUMIFS(BudgetTracker[Iznos\nbudžetirani],BudgetTracker[Mesec],\"April\",BudgetTracker[Povod],\"Praznici\")","v":{"v":0,"d":"0 RSD"}},{"$f":"SUMIFS(BudgetTracker[Iznos\nbudžetirani],BudgetTracker[Mesec],\"April\",BudgetTracker[Povod],\"<>Praznici\",BudgetTracker[Povod],\"<>Rođendani\")","v":{"v":20,"d":"20 RSD"}},{"$f":"SUMIFS(BudgetTracker[Iznos\npotrošeno],BudgetTracker[Mesec],\"April\")","v":{"v":20,"d":"20 RSD"}}]
["Darivanje mlade",null,"Maj","Maj",{"$f":"SUMIFS(BudgetTracker[Iznos\nbudžetirani],BudgetTracker[Mesec],\"Maj\",BudgetTracker[Povod],\"Rođendani\")","v":{"v":0,"d":"0 RSD"}},{"$f":"SUMIFS(BudgetTracker[Iznos\nbudžetirani],BudgetTracker[Mesec],\"Maj\",BudgetTracker[Povod],\"Praznici\")","v":{"v":0,"d":"0 RSD"}},{"$f":"SUMIFS(BudgetTracker[Iznos\nbudžetirani],BudgetTracker[Mesec],\"Maj\",BudgetTracker[Povod],\"<>Praznici\",BudgetTracker[Povod],\"<>Rođendani\")","v":{"v":0,"d":"0 RSD"}},{"$f":"SUMIFS(BudgetTracker[Iznos\npotrošeno],BudgetTracker[Mesec],\"Maj\")","v":{"v":0,"d":"0 RSD"}}]
["Darivanje bebe",null,"Jun","Jun",{"$f":"SUMIFS(BudgetTracker[Iznos\nbudžetirani],BudgetTracker[Mesec],\"Jun\",BudgetTracker[Povod],\"Rođendani\")","v":{"v":50,"d":"50 RSD"}},{"$f":"SUMIFS(BudgetTracker[Iznos\nbudžetirani],BudgetTracker[Mesec],\"Jun\",BudgetTracker[Povod],\"Praznici\")","v":{"v":0,"d":"0 RSD"}},{"$f":"SUMIFS(BudgetTracker[Iznos\nbudžetirani],BudgetTracker[Mesec],\"Jun\",BudgetTracker[Povod],\"<>Praznici\",BudgetTracker[Povod],\"<>Rođendani\")","v":{"v":100,"d":"100 RSD"}},{"$f":"SUMIFS(BudgetTracker[Iznos\npotrošeno],BudgetTracker[Mesec],\"Jun\")","v":{"v":180,"d":"180 RSD"}}]
["Diplome",null,"Jul","Jul",{"$f":"SUMIFS(BudgetTracker[Iznos\nbudžetirani],BudgetTracker[Mesec],\"Jul\",BudgetTracker[Povod],\"Rođendani\")","v":{"v":0,"d":"0 RSD"}},{"$f":"SUMIFS(BudgetTracker[Iznos\nbudžetirani],BudgetTracker[Mesec],\"Jul\",BudgetTracker[Povod],\"Praznici\")","v":{"v":50,"d":"50 RSD"}},{"$f":"SUMIFS(BudgetTracker[Iznos\nbudžetirani],BudgetTracker[Mesec],\"Jul\",BudgetTracker[Povod],\"<>Praznici\",BudgetTracker[Povod],\"<>Rođendani\")","v":{"v":0,"d":"0 RSD"}},{"$f":"SUMIFS(BudgetTracker[Iznos\npotrošeno],BudgetTracker[Mesec],\"Jul\")","v":{"v":70,"d":"70 RSD"}}]
["Drugo",null,"Avgust","Avg",{"$f":"SUMIFS(BudgetTracker[Iznos\nbudžetirani],BudgetTracker[Mesec],\"Avgust\",BudgetTracker[Povod],\"Rođendani\")","v":{"v":0,"d":"0 RSD"}},{"$f":"SUMIFS(BudgetTracker[Iznos\nbudžetirani],BudgetTracker[Mesec],\"Avgust\",BudgetTracker[Povod],\"Praznici\")","v":{"v":0,"d":"0 RSD"}},{"$f":"SUMIFS(BudgetTracker[Iznos\nbudžetirani],BudgetTracker[Mesec],\"Avgust\",BudgetTracker[Povod],\"<>Praznici\",BudgetTracker[Povod],\"<>Rođendani\")","v":{"v":0,"d":"0 RSD"}},{"$f":"SUMIFS(BudgetTracker[Iznos\npotrošeno],BudgetTracker[Mesec],\"Avgust\")","v":{"v":0,"d":"0 RSD"}}]
[null,null,"Septembar","Sep",{"$f":"SUMIFS(BudgetTracker[Iznos\nbudžetirani],BudgetTracker[Mesec],\"Septembar\",BudgetTracker[Povod],\"Rođendani\")","v":{"v":0,"d":"0 RSD"}},{"$f":"SUMIFS(BudgetTracker[Iznos\nbudžetirani],BudgetTracker[Mesec],\"Septembar\",BudgetTracker[Povod],\"Praznici\")","v":{"v":0,"d":"0 RSD"}},{"$f":"SUMIFS(BudgetTracker[Iznos\nbudžetirani],BudgetTracker[Mesec],\"Septembar\",BudgetTracker[Povod],\"<>Praznici\",BudgetTracker[Povod],\"<>Rođendani\")","v":{"v":0,"d":"0 RSD"}},{"$f":"SUMIFS(BudgetTracker[Iznos\npotrošeno],BudgetTracker[Mesec],\"Septembar\")","v":{"v":0,"d":"0 RSD"}}]
[null,null,"Oktobar","Okt",{"$f":"SUMIFS(BudgetTracker[Iznos\nbudžetirani],BudgetTracker[Mesec],\"Oktobar\",BudgetTracker[Povod],\"Rođendani\")","v":{"v":0,"d":"0 RSD"}},{"$f":"SUMIFS(BudgetTracker[Iznos\nbudžetirani],BudgetTracker[Mesec],\"Oktobar\",BudgetTracker[Povod],\"Praznici\")","v":{"v":0,"d":"0 RSD"}},{"$f":"SUMIFS(BudgetTracker[Iznos\nbudžetirani],BudgetTracker[Mesec],\"Oktobar\",BudgetTracker[Povod],\"<>Praznici\",BudgetTracker[Povod],\"<>Rođendani\")","v":{"v":0,"d":"0 RSD"}},{"$f":"SUMIFS(BudgetTracker[Iznos\npotrošeno],BudgetTracker[Mesec],\"Oktobar\")","v":{"v":0,"d":"0 RSD"}}]
[null,null,"Novembar","Nov",{"$f":"SUMIFS(BudgetTracker[Iznos\nbudžetirani],BudgetTracker[Mesec],\"Novembar\",BudgetTracker[Povod],\"Rođendani\")","v":{"v":0,"d":"0 RSD"}},{"$f":"SUMIFS(BudgetTracker[Iznos\nbudžetirani],BudgetTracker[Mesec],\"Novembar\",BudgetTracker[Povod],\"Praznici\")","v":{"v":0,"d":"0 RSD"}},{"$f":"SUMIFS(BudgetTracker[Iznos\nbudžetirani],BudgetTracker[Mesec],\"Novembar\",BudgetTracker[Povod],\"<>Praznici\",BudgetTracker[Povod],\"<>Rođendani\")","v":{"v":0,"d":"0 RSD"}},{"$f":"SUMIFS(BudgetTracker[Iznos\npotrošeno],BudgetTracker[Mesec],\"Novembar\")","v":{"v":0,"d":"0 RSD"}}]
[null,null,"Decembar","Dec",{"$f":"SUMIFS(BudgetTracker[Iznos\nbudžetirani],BudgetTracker[Mesec],\"Decembar\",BudgetTracker[Povod],\"Rođendani\")","v":{"v":0,"d":"0 RSD"}},{"$f":"SUMIFS(BudgetTracker[Iznos\nbudžetirani],BudgetTracker[Mesec],\"Decembar\",BudgetTracker[Povod],\"Praznici\")","v":{"v":0,"d":"0 RSD"}},{"$f":"SUMIFS(BudgetTracker[Iznos\nbudžetirani],BudgetTracker[Mesec],\"Decembar\",BudgetTracker[Povod],\"<>Praznici\",BudgetTracker[Povod],\"<>Rođendani\")","v":{"v":0,"d":"0 RSD"}},{"$f":"SUMIFS(BudgetTracker[Iznos\npotrošeno],BudgetTracker[Mesec],\"Decembar\")","v":{"v":0,"d":"0 RSD"}}]